[Event "ONJK FGH 1"]
[Site "Enschede, Netherlands"]
[Date "2022.08.10"]
[Round "8.1"]
[White "Verwer, Cedric"]
[Black "Okita, Ryoga"]
[Result "0-1"]
[TimeControl "25min + 10sec/move"]
[WhiteElo "552"]
[BlackElo "829"]

1. e4 {[%clk 00:25:17]} {[%emt 00:00:03]} e5 {[%clk 00:25:19]} 2. Nf3 {[%clk
00:25:25]} {[%emt 00:00:02]} Nc6 {[%clk 00:25:28]} {[%emt 00:00:01]} 3. d4
{[%clk 00:25:34]} {[%emt 00:00:01]} d6 {[%clk 00:25:30]} {[%emt 00:00:08]} 4.
dxe5 {[%clk 00:25:29]} {[%emt 00:00:15]} dxe5 {[%clk 00:25:37]} {[%emt
00:00:02]} 5. Qxd8+ {[%clk 00:25:37]} {[%emt 00:00:03]} Nxd8 {[%clk 00:25:43]}
{[%emt 00:00:04]} 6. Nxe5 {[%clk 00:25:44]} {[%emt 00:00:03]} Nf6 {[%clk
00:25:52]} {[%emt 00:00:02]} 7. Nc3 {[%clk 00:25:52]} {[%emt 00:00:02]} Be6
{[%clk 00:25:58]} {[%emt 00:00:03]} 8. Bd3 {[%clk 00:25:43]} {[%emt 00:00:19]}
Bd6 {[%clk 00:26:02]} {[%emt 00:00:07]} 9. Nf3 {[%clk 00:25:43]} {[%emt
00:00:09]} Nc6 {[%clk 00:26:07]} {[%emt 00:00:05]} 10. Bb5 {[%clk 00:25:37]}
{[%emt 00:00:15]} Bb4 {[%clk 00:25:55]} {[%emt 00:00:21]} 11. Bxc6+ {[%clk
00:25:37]} {[%emt 00:00:11]} bxc6 {[%clk 00:26:05]} {[%emt 00:00:01]} 12. e5
{[%clk 00:25:40]} {[%emt 00:00:07]} Bxc3+ {[%clk 00:26:10]} {[%emt 00:00:06]}
13. bxc3 {[%clk 00:25:48]} Nd5 {[%clk 00:26:17]} {[%emt 00:00:03]} 14. Bd2
{[%clk 00:25:48]} {[%emt 00:00:10]} O-O {[%clk 00:26:18]} {[%emt 00:00:09]} 15.
O-O {[%clk 00:25:52]} {[%emt 00:00:06]} Rab8 {[%clk 00:26:26]} {[%emt
00:00:01]} 16. Rab1 {[%clk 00:25:41]} {[%emt 00:00:22]} Bf5 {[%clk 00:26:22]}
{[%emt 00:00:14]} 17. Rxb8 {[%clk 00:25:38]} {[%emt 00:00:12]} Rxb8 {[%clk
00:26:30]} {[%emt 00:00:02]} 18. Nd4 {[%clk 00:25:38]} {[%emt 00:00:11]} Bd7
{[%clk 00:26:27]} {[%emt 00:00:13]} 19. c4 {[%clk 00:25:44]} {[%emt 00:00:04]}
Nb4 {[%clk 00:26:25]} {[%emt 00:00:13]} 20. a3 {[%clk 00:25:31]} {[%emt
00:00:22]} Na6 {[%clk 00:26:21]} {[%emt 00:00:13]} 21. h3 {[%clk 00:25:25]}
{[%emt 00:00:17]} c5 {[%clk 00:26:22]} {[%emt 00:00:08]} 22. Nb3 {[%clk
00:25:29]} {[%emt 00:00:06]} Be6 {[%clk 00:26:21]} {[%emt 00:00:11]} 23. Ba5
{[%clk 00:25:25]} {[%emt 00:00:15]} Bxc4 {[%clk 00:26:25]} {[%emt 00:00:05]} 24.
Nd2 {[%clk 00:25:27]} {[%emt 00:00:06]} Bxf1 {[%clk 00:26:33]} {[%emt
00:00:05]} 25. Nxf1 {[%clk 00:25:36]} Rb1 {[%clk 00:26:40]} {[%emt 00:00:03]}
26. f4 {[%clk 00:25:40]} {[%emt 00:00:06]} Rc1 {[%clk 00:26:48]} {[%emt
00:00:01]} 27. c3 {[%clk 00:25:48]} {[%emt 00:00:03]} Ra1 {[%clk 00:26:53]}
{[%emt 00:00:05]} 28. c4 {[%clk 00:25:49]} {[%emt 00:00:09]} Rxa3 {[%clk
00:27:01]} {[%emt 00:00:02]} 29. Bd2 {[%clk 00:25:56]} {[%emt 00:00:03]} Nb4
{[%clk 00:27:06]} {[%emt 00:00:05]} 30. Ne3 {[%clk 00:23:51]} {[%emt 00:02:14]}
Ra1+ {[%clk 00:27:00]} {[%emt 00:00:16]} 31. Kf2 {[%clk 00:23:55]} {[%emt
00:00:06]} Ra2 {[%clk 00:27:08]} {[%emt 00:00:02]} 32. Ke2 {[%clk 00:24:04]}
{[%emt 00:00:02]} a5 {[%clk 00:27:10]} {[%emt 00:00:08]} 33. Nd5 {[%clk
00:24:00]} {[%emt 00:00:13]} Nxd5 {[%clk 00:27:16]} {[%emt 00:00:04]} 34. cxd5
{[%clk 00:24:09]} {[%emt 00:00:02]} Kf8 {[%clk 00:27:21]} {[%emt 00:00:05]} 35.
Kd3 {[%clk 00:24:13]} {[%emt 00:00:06]} a4 {[%emt 00:00:05]} 36. Ba5 {[%clk
00:24:19]} {[%emt 00:00:01]} Ke7 {[%clk 00:27:16]} {[%emt 00:00:23]} 37. Kc4
{[%clk 00:24:28]} {[%emt 00:00:02]} a3 {[%clk 00:27:24]} {[%emt 00:00:02]} 38.
Kxc5 {[%clk 00:24:35]} {[%emt 00:00:01]} Rc2+ {[%clk 00:27:31]} {[%emt
00:00:03]} 39. Kb5 {[%clk 00:24:40]} {[%emt 00:00:05]} a2 {[%clk 00:27:41]} 40.
Bxc7 {[%clk 00:24:45]} {[%emt 00:00:05]} a1=Q {[%emt 00:00:03]} 41. d6+ {[%clk
00:24:53]} {[%emt 00:00:01]} Kd7 {[%clk 00:27:57]} {[%emt 00:00:02]} 42. e6+
{[%clk 00:24:59]} {[%emt 00:00:04]} fxe6 {[%emt 00:00:27]} 43. Ba5 {[%clk
00:24:32]} {[%emt 00:00:12]} Qb1+ {[%clk 00:28:09]} {[%emt 00:00:06]} 44. Ka6
{[%emt 00:00:04]} Ra2 {[%clk 00:28:17]} 45. g4 {[%clk 00:24:44]} {[%emt
00:00:06]} Kc6 {[%clk 00:28:23]} {[%emt 00:00:04]} 46. d7 {[%clk 00:24:46]}
{[%emt 00:00:08]} Qb6# {[%clk 00:28:21]} {[%emt 00:00:02]} 0-1

[Event "ONJK FGH 1"]
[Site "Enschede, Netherlands"]
[Date "2022.08.10"]
[Round "8.2"]
[White "Mousa, Besher"]
[Black "Oelmeijer, Sjoerd"]
[Result "0-1"]
[TimeControl "25min + 10sec/move"]
[WhiteElo "782"]
[BlackElo "743"]

1. e4 {[%clk 00:25:20]} {[%emt 01:17:22]} e5 {[%clk 00:25:18]} {[%emt
00:00:02]} 2. Nf3 {[%clk 00:25:28]} {[%emt 00:00:01]} Nc6 {[%clk 00:25:26]}
{[%emt 00:00:03]} 3. Nc3 {[%clk 00:25:36]} {[%emt 00:00:02]} Nf6 {[%clk
00:25:31]} {[%emt 00:00:04]} 4. Bc4 {[%clk 00:25:42]} {[%emt 00:00:04]} Bc5
{[%clk 00:25:38]} {[%emt 00:00:03]} 5. O-O {[%clk 00:25:47]} {[%emt 00:00:05]}
O-O {[%clk 00:25:45]} {[%emt 00:00:03]} 6. d3 {[%clk 00:25:50]} {[%emt
00:00:07]} d6 {[%clk 00:25:38]} {[%emt 00:00:18]} 7. Bg5 {[%clk 00:25:57]}
{[%emt 00:00:02]} h6 {[%clk 00:25:40]} {[%emt 00:00:08]} 8. Bh4 {[%clk
00:26:04]} {[%emt 00:00:02]} Bg4 {[%clk 00:25:45]} {[%emt 00:00:06]} 9. h3
{[%clk 00:26:06]} {[%emt 00:00:08]} Bd7 {[%clk 00:25:40]} {[%emt 00:00:15]} 10.
Nd5 {[%clk 00:25:43]} {[%emt 00:00:32]} Nxd5 {[%clk 00:25:42]} {[%emt
00:00:09]} 11. Bxd5 {[%clk 00:25:46]} {[%emt 00:00:07]} Qe8 {[%clk 00:25:37]}
{[%emt 00:00:16]} 12. c3 {[%clk 00:25:20]} {[%emt 00:00:34]} Be6 {[%clk
00:25:20]} {[%emt 00:00:28]} 13. b4 {[%clk 00:25:18]} {[%emt 00:00:13]} Bb6
{[%clk 00:25:28]} {[%emt 00:00:02]} 14. a4 {[%clk 00:25:08]} {[%emt 00:00:19]}
a5 {[%clk 00:25:29]} {[%emt 00:00:09]} 15. b5 {[%clk 00:25:13]} {[%emt
00:00:05]} Bxd5 {[%clk 00:25:20]} {[%emt 00:00:20]} 16. bxc6 {[%clk 00:25:10]}
{[%emt 00:00:13]} Bxc6 {[%clk 00:25:28]} {[%emt 00:00:02]} 17. d4 {[%clk
00:24:46]} {[%emt 00:00:33]} exd4 {[%clk 00:25:21]} {[%emt 00:00:18]} 18. cxd4
{[%clk 00:24:42]} {[%emt 00:00:12]} Qxe4 {[%clk 00:24:58]} {[%emt 00:00:34]} 19.
Bg3 {[%clk 00:24:39]} {[%emt 00:00:11]} Qe8 {[%clk 00:24:28]} {[%emt 00:00:42]}
20. Re1 {[%clk 00:24:43]} {[%emt 00:00:06]} Qd7 {[%clk 00:24:33]} {[%emt
00:00:06]} 21. d5 {[%clk 00:24:42]} {[%emt 00:00:09]} Bxa4 {[%clk 00:23:44]}
{[%emt 00:01:00]} 22. Rxa4 {[%clk 00:24:45]} {[%emt 00:00:07]} Rfe8 {[%clk
00:23:27]} {[%emt 00:00:27]} 23. Rg4 {[%clk 00:23:50]} {[%emt 00:01:03]} a4
{[%clk 00:22:50]} {[%emt 00:00:50]} 24. Qa1 {[%clk 00:23:54]} {[%emt 00:00:02]}
f6 {[%clk 00:22:28]} {[%emt 00:00:36]} 25. Rxe8+ {[%clk 00:23:56]} {[%emt
00:00:08]} Qxe8 {[%clk 00:22:33]} {[%emt 00:00:05]} 26. Qxf6 {[%clk 00:23:57]}
{[%emt 00:00:06]} Qf7 {[%clk 00:22:18]} {[%emt 00:00:27]} 27. Qxh6 {[%clk
00:23:47]} {[%emt 00:00:11]} a3 {[%clk 00:22:20]} {[%emt 00:00:17]} 28. Nd2
{[%clk 00:22:46]} {[%emt 00:01:08]} a2 {[%clk 00:22:26]} {[%emt 00:00:07]} 29.
Nb3 {[%clk 00:22:52]} a1=Q+ 30. Nxa1 Rxa1+ {[%clk 00:22:22]} {[%emt 00:00:04]}
31. Kh2 {[%clk 00:21:50]} {[%emt 00:00:01]} Bd4 {[%clk 00:22:20]} {[%emt
00:01:24]} 32. Qh4 {[%clk 00:21:37]} {[%emt 00:00:19]} Bf6 {[%clk 00:22:24]}
{[%emt 00:00:10]} 33. Qh6 {[%clk 00:21:30]} {[%emt 00:00:08]} Ra4 {[%clk
00:22:04]} {[%emt 00:00:38]} 34. Qe3 {[%clk 00:21:06]} {[%emt 00:00:21]} Rxg4
{[%clk 00:22:08]} {[%emt 00:00:20]} 35. hxg4 {[%clk 00:20:56]} {[%emt
00:00:06]} Qxd5 {[%clk 00:21:27]} {[%emt 00:01:04]} 36. Qe8+ {[%clk 00:21:04]}
{[%emt 00:00:02]} Kh7 {[%clk 00:21:28]} {[%emt 00:00:09]} 37. Qd7 {[%clk
00:20:27]} {[%emt 00:00:44]} c5 {[%clk 00:21:04]} {[%emt 00:00:37]} 38. Bxd6
{[%clk 00:20:27]} {[%emt 00:00:04]} Be5+ {[%clk 00:21:11]} {[%emt 00:00:09]} 39.
g3 {[%clk 00:20:20]} {[%emt 00:00:17]} Bxd6 {[%clk 00:21:10]} {[%emt 00:00:11]}
40. Qf5+ {[%clk 00:19:39]} {[%emt 00:00:49]} Qxf5 {[%clk 00:21:15]} {[%emt
00:00:07]} 41. gxf5 {[%clk 00:19:48]} c4 {[%clk 00:21:23]} {[%emt 00:00:02]} 42.
Kg1 {[%clk 00:19:58]} c3 {[%clk 00:21:25]} {[%emt 00:00:08]} 43. Kf1 {[%clk
00:20:07]} c2 {[%clk 00:21:35]} 44. Ke2 {[%clk 00:20:13]} {[%emt 00:00:03]}
c1=Q {[%clk 00:21:34]} {[%emt 00:00:09]} 45. Kf3 {[%clk 00:20:17]} {[%emt
00:00:08]} b5 {[%clk 00:21:39]} {[%emt 00:00:06]} 46. Kg2 {[%clk 00:20:26]}
{[%emt 00:00:01]} b4 {[%clk 00:21:46]} {[%emt 00:00:03]} 47. Kh2 {[%clk
00:20:33]} {[%emt 00:00:02]} b3 {[%clk 00:21:53]} {[%emt 00:00:04]} 48. Kh3
{[%clk 00:20:41]} {[%emt 00:00:02]} b2 {[%clk 00:21:56]} {[%emt 00:00:06]} 49.
Kh4 {[%clk 00:20:50]} b1=Q {[%clk 00:22:01]} {[%emt 00:00:05]} 50. Kh5 {[%clk
00:20:59]} Qxf5+ {[%clk 00:22:04]} {[%emt 00:00:09]} 51. Kh4 {[%clk 00:21:07]}
{[%emt 00:00:02]} Qh6# {[%clk 00:21:59]} {[%emt 00:00:05]} 0-1

[Event "ONJK FGH 1"]
[Site "Enschede, Netherlands"]
[Date "2022.08.10"]
[Round "8.3"]
[White "Heeres, Felix"]
[Black "Datta, Satadru"]
[Result "0-1"]
[TimeControl "25min + 10sec/move"]
[WhiteElo "495"]
[BlackElo "786"]

1. e4 {[%clk 00:25:19]} e5 {[%clk 00:25:19]} {[%emt 00:00:02]} 2. Nf3 {[%clk
00:25:27]} {[%emt 00:00:02]} Nc6 {[%clk 00:25:23]} {[%emt 00:00:05]} 3. Nc3
{[%clk 00:25:25]} {[%emt 00:00:12]} Nf6 {[%clk 00:25:27]} {[%emt 00:00:06]} 4.
Bc4 {[%clk 00:25:23]} {[%emt 00:00:12]} Bc5 {[%clk 00:25:33]} {[%emt 00:00:04]}
5. O-O {[%clk 00:25:28]} {[%emt 00:00:05]} d6 {[%clk 00:25:40]} {[%emt
00:00:03]} 6. Ng5 {[%clk 00:25:35]} {[%emt 00:00:02]} Be6 {[%clk 00:25:15]}
{[%emt 00:00:36]} 7. Bxe6 {[%clk 00:25:40]} {[%emt 00:00:05]} fxe6 {[%clk
00:25:16]} {[%emt 00:00:09]} 8. a3 {[%clk 00:25:26]} {[%emt 00:00:25]} h6
{[%emt 00:00:32]} 9. Nxe6 {[%clk 00:25:30]} Qe7 {[%clk 00:24:56]} {[%emt
00:00:12]} 10. Nd5 {[%clk 00:25:30]} {[%emt 00:00:10]} Nxd5 {[%clk 00:24:39]}
{[%emt 00:00:26]} 11. exd5 {[%clk 00:25:37]} {[%emt 00:00:04]} Na5 {[%clk
00:24:39]} {[%emt 00:00:10]} 12. b4 {[%clk 00:25:45]} {[%emt 00:00:02]} Bxb4
{[%clk 00:24:23]} {[%emt 00:00:26]} 13. axb4 {[%clk 00:25:52]} {[%emt
00:00:03]} Nc4 {[%clk 00:24:11]} {[%emt 00:00:22]} 14. d3 {[%clk 00:25:50]}
{[%emt 00:00:12]} Nb6 {[%clk 00:24:09]} {[%emt 00:00:13]} 15. Qh5+ {[%clk
00:25:49]} {[%emt 00:00:10]} Kd7 {[%clk 00:23:42]} {[%emt 00:00:37]} 16. Re1
{[%clk 00:25:43]} {[%emt 00:00:17]} Rag8 {[%clk 00:23:14]} {[%emt 00:00:37]} 17.
Rxa7 {[%clk 00:25:40]} {[%emt 00:00:14]} g6 {[%clk 00:23:06]} {[%emt 00:00:16]}
18. Qg4 {[%clk 00:25:36]} {[%emt 00:00:15]} Ke8 {[%clk 00:22:35]} {[%emt
00:00:41]} 19. Re3 {[%clk 00:25:32]} {[%emt 00:00:13]} Nxd5 {[%clk 00:22:24]}
{[%emt 00:00:23]} 20. Ra8+ {[%clk 00:25:37]} {[%emt 00:00:05]} Kf7 {[%clk
00:22:11]} {[%emt 00:00:22]} 21. Rf3+ {[%clk 00:25:36]} {[%emt 00:00:11]} Nf6
{[%clk 00:22:14]} {[%emt 00:00:07]} 22. Rxg8 {[%clk 00:25:30]} {[%emt
00:00:16]} Rxg8 {[%clk 00:22:13]} 23. Nxc7 {[%clk 00:25:20]} {[%emt 00:00:45]}
Qxc7 {[%clk 00:22:14]} {[%emt 00:00:13]} 24. Qc4+ {[%clk 00:25:28]} {[%emt
00:00:04]} Qxc4 {[%clk 00:22:19]} {[%emt 00:00:06]} 25. dxc4 {[%clk 00:25:36]}
{[%emt 00:00:02]} e4 {[%clk 00:22:16]} {[%emt 00:00:13]} 26. Ra3 {[%clk
00:25:32]} {[%emt 00:00:15]} h5 {[%clk 00:22:02]} {[%emt 00:00:24]} 27. Ra7
{[%clk 00:25:37]} {[%emt 00:00:05]} Rb8 {[%clk 00:22:01]} {[%emt 00:00:11]} 28.
Bf4 {[%clk 00:25:44]} {[%emt 00:00:03]} Ke6 {[%clk 00:22:04]} {[%emt 00:00:07]}
29. c5 {[%clk 00:25:52]} {[%emt 00:00:03]} Nd5 {[%clk 00:21:37]} {[%emt
00:00:36]} 30. Bxd6 {[%clk 00:25:58]} {[%emt 00:00:03]} Rd8 {[%clk 00:21:36]}
{[%emt 00:00:11]} 31. Bg3 {[%clk 00:25:45]} {[%emt 00:00:23]} Nxb4 {[%clk
00:21:33]} {[%emt 00:00:13]} 32. Rxb7 {[%clk 00:25:52]} {[%emt 00:00:04]} Rd1#
{[%clk 00:21:12]} {[%emt 00:00:18]} 0-1

[Event "ONJK FGH 1"]
[Site "Enschede, Netherlands"]
[Date "2022.08.10"]
[Round "9.1"]
[White "Okita, Ryoga"]
[Black "Datta, Satadru"]
[Result "1-0"]
[TimeControl "25min + 10sec/move"]
[WhiteElo "829"]
[BlackElo "786"]

1. e4 {[%clk 00:25:15]} {[%emt 00:00:04]} e5 {[%clk 00:25:18]} {[%emt
00:00:02]} 2. Nf3 {[%clk 00:25:24]} {[%emt 00:00:02]} Nc6 {[%clk 00:25:24]}
{[%emt 00:00:03]} 3. Bc4 {[%clk 00:25:31]} {[%emt 00:00:02]} Bc5 {[%clk
00:25:28]} {[%emt 00:00:07]} 4. d3 {[%clk 00:25:33]} {[%emt 00:00:08]} Nf6
{[%clk 00:25:34]} {[%emt 00:00:04]} 5. Bg5 {[%clk 00:25:41]} {[%emt 00:00:02]}
O-O {[%clk 00:25:30]} {[%emt 00:00:14]} 6. Nc3 {[%clk 00:25:50]} {[%emt
00:00:01]} d6 {[%clk 00:25:18]} {[%emt 00:00:22]} 7. h3 {[%clk 00:25:58]}
{[%emt 00:00:02]} Be6 {[%clk 00:25:16]} {[%emt 00:00:13]} 8. Bd5 {[%clk
00:26:05]} {[%emt 00:00:03]} Re8 {[%clk 00:24:29]} {[%emt 00:00:56]} 9. O-O
{[%clk 00:25:40]} {[%emt 00:00:35]} h6 {[%clk 00:24:23]} {[%emt 00:00:16]} 10.
Bh4 {[%clk 00:25:44]} {[%emt 00:00:05]} Qd7 {[%clk 00:23:51]} {[%emt 00:00:42]}
11. Bxf6 {[%clk 00:25:45]} {[%emt 00:00:10]} gxf6 {[%clk 00:23:51]} {[%emt
00:00:10]} 12. Nd2 {[%clk 00:25:40]} {[%emt 00:00:16]} Rad8 {[%clk 00:23:34]}
{[%emt 00:00:26]} 13. Bxe6 {[%clk 00:25:43]} {[%emt 00:00:07]} Qxe6 {[%clk
00:23:19]} {[%emt 00:00:25]} 14. Qh5 {[%clk 00:25:51]} {[%emt 00:00:01]} Kh7
{[%clk 00:23:14]} {[%emt 00:00:15]} 15. Nd5 {[%clk 00:25:53]} {[%emt 00:00:10]}
Bb6 {[%clk 00:23:07]} {[%emt 00:00:16]} 16. Qh4 {[%clk 00:25:44]} {[%emt
00:00:19]} Kg7 {[%clk 00:22:29]} {[%emt 00:00:47]} 17. Kh1 {[%clk 00:25:54]}
{[%emt 00:00:33]} Rg8 {[%clk 00:20:53]} {[%emt 00:01:33]} 18. f4 {[%clk
00:25:58]} {[%emt 00:00:08]} Nd4 {[%clk 00:19:55]} {[%emt 00:01:07]} 19. fxe5
{[%clk 00:25:59]} {[%emt 00:00:09]} fxe5 {[%clk 00:19:45]} {[%emt 00:00:20]} 20.
Rf6 {[%clk 00:25:50]} {[%emt 00:00:19]} Qe8 {[%clk 00:19:23]} {[%emt 00:00:33]}
21. Qxh6# {[%clk 00:25:39]} {[%emt 00:00:10]} 1-0

[Event "ONJK FGH 1"]
[Site "Enschede, Netherlands"]
[Date "2022.08.10"]
[Round "9.2"]
[White "Oelmeijer, Sjoerd"]
[Black "Terlouw, Frank"]
[Result "1-0"]
[TimeControl "25min + 10sec/move"]
[WhiteElo "743"]
[BlackElo "731"]

1. d4 {[%clk 00:25:20]} d6 {[%clk 00:25:19]} {[%emt 00:00:01]} 2. e4 {[%clk
00:25:28]} {[%emt 00:00:02]} Nf6 {[%clk 00:25:26]} {[%emt 00:00:02]} 3. Nc3
{[%clk 00:25:37]} {[%emt 00:00:02]} c6 {[%clk 00:25:31]} {[%emt 00:00:03]} 4.
Nf3 {[%clk 00:25:45]} {[%emt 00:00:03]} Qa5 {[%clk 00:25:36]} {[%emt 00:00:05]}
5. Bd2 {[%clk 00:25:49]} {[%emt 00:00:07]} Qc7 {[%clk 00:25:44]} {[%emt
00:00:02]} 6. Bd3 {[%clk 00:25:51]} {[%emt 00:00:08]} e5 {[%clk 00:25:51]}
{[%emt 00:00:03]} 7. dxe5 {[%clk 00:25:56]} {[%emt 00:00:04]} dxe5 {[%clk
00:26:00]} 8. O-O {[%clk 00:26:01]} {[%emt 00:00:06]} Be7 {[%clk 00:26:08]}
{[%emt 00:00:02]} 9. Bc4 {[%clk 00:25:48]} {[%emt 00:00:23]} O-O {[%clk
00:25:49]} {[%emt 00:00:29]} 10. Be3 {[%clk 00:25:50]} {[%emt 00:00:08]} b6
{[%clk 00:25:36]} {[%emt 00:00:23]} 11. Qe2 {[%clk 00:25:29]} {[%emt 00:00:30]}
Nbd7 {[%clk 00:25:36]} {[%emt 00:00:10]} 12. Rad1 {[%clk 00:25:32]} {[%emt
00:00:07]} Nc5 {[%clk 00:25:12]} {[%emt 00:00:34]} 13. Bxc5 {[%clk 00:25:24]}
{[%emt 00:00:18]} Bxc5 {[%clk 00:25:19]} {[%emt 00:00:02]} 14. Rd2 {[%clk
00:24:56]} {[%emt 00:00:40]} b5 {[%clk 00:24:47]} {[%emt 00:00:42]} 15. Bd3
{[%clk 00:24:58]} {[%emt 00:00:08]} Bb6 {[%clk 00:24:40]} {[%emt 00:00:16]} 16.
Rfd1 {[%clk 00:24:35]} {[%emt 00:00:34]} Be6 {[%clk 00:24:42]} {[%emt
00:00:07]} 17. Ng5 {[%clk 00:24:11]} {[%emt 00:00:34]} Bg4 {[%clk 00:24:08]}
{[%emt 00:00:44]} 18. Nf3 {[%clk 00:24:12]} {[%emt 00:00:10]} Rad8 {[%clk
00:23:43]} {[%emt 00:00:35]} 19. h3 {[%clk 00:24:17]} {[%emt 00:00:05]} Bc8
{[%clk 00:23:06]} {[%emt 00:00:46]} 20. Qe1 {[%clk 00:24:06]} {[%emt 00:00:22]}
a6 {[%clk 00:22:39]} {[%emt 00:00:37]} 21. Be2 {[%clk 00:24:09]} {[%emt
00:00:07]} Rxd2 {[%clk 00:22:21]} {[%emt 00:00:27]} 22. Rxd2 {[%clk 00:24:15]}
{[%emt 00:00:04]} Qa7 {[%clk 00:22:11]} {[%emt 00:00:21]} 23. Nxe5 {[%clk
00:23:54]} {[%emt 00:00:30]} Bxf2+ {[%clk 00:22:04]} {[%emt 00:00:16]} 24. Qxf2
{[%clk 00:24:02]} {[%emt 00:00:03]} Qxf2+ {[%clk 00:22:11]} {[%emt 00:00:03]}
25. Kxf2 {[%clk 00:24:09]} {[%emt 00:00:03]} Bb7 {[%clk 00:22:05]} {[%emt
00:00:16]} 26. Kg1 {[%clk 00:24:12]} {[%emt 00:00:08]} b4 {[%clk 00:21:53]}
{[%emt 00:00:22]} 27. Nd1 {[%clk 00:24:17]} {[%emt 00:00:04]} Nxe4 {[%clk
00:21:53]} {[%emt 00:00:09]} 28. Rd7 {[%clk 00:24:07]} {[%emt 00:00:21]} Bc8
{[%clk 00:21:37]} {[%emt 00:00:26]} 29. Rc7 {[%clk 00:24:14]} {[%emt 00:00:03]}
Ng3 {[%clk 00:21:35]} {[%emt 00:00:12]} 30. Bf3 {[%clk 00:24:07]} {[%emt
00:00:18]} Nf5 {[%clk 00:21:07]} {[%emt 00:00:37]} 31. Nxc6 {[%clk 00:23:15]}
{[%emt 00:01:02]} g6 {[%clk 00:20:49]} {[%emt 00:00:28]} 32. Nxb4 {[%clk
00:23:12]} {[%emt 00:00:13]} a5 {[%clk 00:20:47]} {[%emt 00:00:12]} 33. Nc6
{[%clk 00:23:12]} {[%emt 00:00:10]} a4 {[%clk 00:20:56]} {[%emt 00:00:02]} 34.
Ne5 {[%clk 00:23:18]} {[%emt 00:00:04]} Ba6 {[%clk 00:20:42]} {[%emt 00:00:22]}
35. Ra7 {[%clk 00:22:59]} {[%emt 00:00:30]} Bb5 {[%clk 00:20:28]} {[%emt
00:00:21]} 36. Ra5 {[%clk 00:22:42]} {[%emt 00:00:30]} Rb8 {[%clk 00:19:48]}
{[%emt 00:00:50]} 37. Ra8 {[%clk 00:22:24]} {[%emt 00:00:28]} Rf8 {[%clk
00:19:15]} {[%emt 00:00:40]} 38. Rxf8+ {[%clk 00:22:30]} {[%emt 00:00:06]} Kxf8
{[%clk 00:19:24]} {[%emt 00:00:02]} 39. Nc3 {[%clk 00:22:30]} {[%emt 00:00:11]}
a3 {[%clk 00:18:50]} {[%emt 00:00:44]} 40. bxa3 {[%clk 00:22:11]} {[%emt
00:00:29]} Ba6 {[%clk 00:18:49]} {[%emt 00:00:10]} 41. Be2 {[%clk 00:22:06]}
{[%emt 00:00:15]} Bxe2 {[%clk 00:18:37]} {[%emt 00:00:22]} 42. Nxe2 {[%clk
00:22:14]} {[%emt 00:00:03]} Ne7 {[%clk 00:18:42]} {[%emt 00:00:04]} 43. Kf2
{[%clk 00:22:21]} {[%emt 00:00:03]} Nd5 {[%clk 00:18:50]} {[%emt 00:00:02]} 44.
Kf3 {[%clk 00:22:17]} {[%emt 00:00:14]} f6 {[%clk 00:18:50]} {[%emt 00:00:11]}
45. Ke4 {[%clk 00:22:23]} {[%emt 00:00:04]} Nc7 {[%clk 00:18:48]} {[%emt
00:00:11]} 46. Nd7+ {[%clk 00:22:25]} {[%emt 00:00:08]} Ke7 {[%emt 00:00:04]}
47. Nc5 {[%clk 00:22:32]} Kd6 {[%clk 00:19:03]} {[%emt 00:00:03]} 48. Kd4
{[%clk 00:22:38]} {[%emt 00:00:05]} Nb5+ {[%clk 00:19:05]} {[%emt 00:00:07]} 49.
Kc4 {[%clk 00:22:46]} {[%emt 00:00:02]} Nxa3+ {[%clk 00:19:12]} {[%emt
00:00:03]} 50. Kb3 {[%emt 00:00:21]} Nb1 {[%clk 00:18:42]} {[%emt 00:00:38]} 51.
Ne4+ {[%clk 00:22:27]} {[%emt 00:00:20]} Ke5 {[%clk 00:18:46]} {[%emt
00:00:06]} 52. N4c3 {[%clk 00:22:26]} {[%emt 00:00:12]} Nd2+ {[%clk 00:18:50]}
{[%emt 00:00:06]} 53. Kb4 {[%clk 00:22:31]} {[%emt 00:00:05]} Nf1 {[%clk
00:18:43]} {[%emt 00:00:16]} 54. a4 {[%clk 00:22:38]} {[%emt 00:00:03]} Kd6
{[%clk 00:18:47]} {[%emt 00:00:07]} 55. a5 {[%clk 00:22:42]} {[%emt 00:00:06]}
f5 {[%clk 00:18:37]} {[%emt 00:00:20]} 56. Kb5 {[%clk 00:22:49]} {[%emt
00:00:03]} Kc7 {[%clk 00:18:35]} {[%emt 00:00:12]} 57. Nd5+ {[%clk 00:22:46]}
{[%emt 00:00:13]} Kb7 {[%clk 00:18:43]} {[%emt 00:00:01]} 58. c4 {[%clk
00:22:51]} {[%emt 00:00:05]} Nd2 {[%clk 00:18:43]} {[%emt 00:00:10]} 59. c5
{[%clk 00:22:54]} {[%emt 00:00:07]} Ne4 {[%clk 00:18:32]} {[%emt 00:00:20]} 60.
c6+ {[%clk 00:23:01]} {[%emt 00:00:06]} Kc8 {[%clk 00:18:33]} {[%emt 00:00:17]}
61. a6 {[%clk 00:23:14]} {[%emt 00:00:08]} Nd6+ {[%clk 00:18:40]} {[%emt
00:00:03]} 62. Kb6 {[%clk 00:23:17]} {[%emt 00:00:06]} Nc4+ {[%clk 00:18:44]}
{[%emt 00:00:06]} 63. Kc5 {[%clk 00:23:06]} {[%emt 00:00:22]} f4 {[%clk
00:18:22]} {[%emt 00:00:31]} 64. Kxc4 {[%clk 00:23:10]} {[%emt 00:00:06]} f3
{[%clk 00:18:29]} {[%emt 00:00:03]} 65. gxf3 {[%clk 00:23:19]} {[%emt
00:00:02]} g5 {[%clk 00:18:38]} {[%emt 00:00:01]} 66. Kb5 {[%clk 00:23:27]}
{[%emt 00:00:02]} g4 {[%clk 00:18:45]} {[%emt 00:00:03]} 67. hxg4 {[%clk
00:23:29]} {[%emt 00:00:07]} h5 {[%clk 00:18:53]} {[%emt 00:00:02]} 68. gxh5
{[%clk 00:23:36]} {[%emt 00:00:04]} Kb8 {[%clk 00:18:57]} {[%emt 00:00:05]} 69.
h6 {[%clk 00:23:41]} {[%emt 00:00:06]} Ka7 {[%clk 00:19:05]} {[%emt 00:00:02]}
70. h7 {[%clk 00:23:47]} {[%emt 00:00:03]} Kb8 {[%clk 00:19:11]} {[%emt
00:00:04]} 71. h8=Q+ {[%clk 00:23:52]} {[%emt 00:00:06]} Ka7 {[%clk 00:19:13]}
{[%emt 00:00:07]} 72. Qg7+ {[%clk 00:23:59]} {[%emt 00:00:04]} Kb8 {[%clk
00:19:15]} {[%emt 00:00:07]} 73. Qb7# {[%clk 00:23:57]} {[%emt 00:00:02]} 1-0